fUSD/lending_fUSD_20250602
["ID","MTS","AMOUNT","RATE_DAILY","PERIOD"]
[363772218,1748867440512,-443.55768341,0.00019178,2]
[363772220,1748867440522,-420.0,0.00019178,2]
[363772223,1748867440532,-420.0,0.00019178,2]
[363772224,1748867440541,-420.0,0.00019178,2]
[363772227,1748867440551,-420.0,0.00019178,2]
[363772228,1748867440561,-420.0,0.00019178,2]
[363772230,1748867440571,-420.0,0.00019178,2]
[363772233,1748867440581,-422.08507032,0.00019178,2]
[363772234,1748867440590,-420.0,0.00019178,2]
[363772237,1748867440601,-420.0,0.00019178,2]
[363772238,1748867440611,-420.0,0.00019178,2]
[363772240,1748867440620,-432.54577676,0.00019178,2]
[363772242,1748867440630,-423.26750327,0.00019178,2]
[363772244,1748867440640,-476.82,0.00019178,2]
[363772246,1748867440649,-420.0,0.00019178,2]
[363772248,1748867440659,-434.27143203,0.00019178,2]
[363772250,1748867440668,-435.58972321,0.00019178,2]
[363772252,1748867440678,-420.0,0.00019178,2]
[363772254,1748867440688,-420.0,0.00019178,2]
[363772256,1748867440697,-287.42887411,0.00019178,2]
[363772258,1748867440707,-420.0,0.00019178,2]
[363772260,1748867440716,-424.40777982,0.00019178,2]
[363772262,1748867440726,-420.0,0.00019178,2]
[363772264,1748867440736,-420.0,0.00019178,2]
[363772266,1748867440746,-420.0,0.00019178,2]
[363772268,1748867440755,-420.0,0.00019178,2]
[363772270,1748867440764,-420.0,0.00019178,2]
[363772272,1748867440774,-275.48766996,0.00019178,2]
[363772274,1748867440784,-420.0,0.00019178,2]
[363772275,1748867440793,-420.0,0.00019178,2]
[363772277,1748867440803,-420.0,0.00019178,2]
[363772279,1748867440813,-420.0,0.00019178,2]
[363772281,1748867440823,-420.0,0.00019178,2]
[363772283,1748867440834,-503.36,0.00019178,2]
[363772285,1748867440843,-423.46160475,0.00019178,2]
[363772287,1748867440854,-420.0,0.00019178,2]
[363772289,1748867440864,-420.0,0.00019178,2]
[363772291,1748867440874,-420.0,0.00019178,2]
[363772293,1748867440883,-420.0,0.00019178,2]
[363772295,1748867440893,-421.56157708,0.00019178,2]
[363772297,1748867440902,-420.0,0.00019178,2]
[363772299,1748867440912,-420.0,0.00019178,2]
[363772301,1748867440922,-422.83449052,0.00019178,2]
[363772303,1748867440932,-420.0,0.00019178,2]
[363772304,1748867440942,-345.76208385,0.00019178,2]
[363772306,1748867440951,-420.0,0.00019178,2]
[363772308,1748867440961,-421.41303659,0.00019178,2]
[363772310,1748867440971,-420.0,0.00019178,2]
[363772312,1748867440981,-420.0,0.00019178,2]
[363772314,1748867440990,-420.0,0.00019178,2]
[363772316,1748867441000,-420.0,0.00019178,2]
[363772318,1748867441010,-420.0,0.00019178,2]
[363772320,1748867441019,-420.0,0.00019178,2]
[363772322,1748867441029,-424.64437125,0.00019178,2]
[363772324,1748867441038,-420.0,0.00019178,2]
[363772326,1748867441048,-439.44354162,0.00019178,2]
[363772328,1748867441058,-495.13300608,0.00019178,2]
[363772330,1748867441068,-420.0,0.00019178,2]
[363772332,1748867441078,-427.21334514,0.00019178,2]
[363772334,1748867441089,-420.0,0.00019178,2]
[363772336,1748867441099,-420.0,0.00019178,2]
[363772338,1748867441109,-480.25,0.00019178,2]
[363772340,1748867441118,-420.0,0.00019178,2]
[363772342,1748867441128,-425.52590662,0.00019178,2]
[363772344,1748867441138,-420.0,0.00019178,2]
[363772346,1748867441148,-420.0,0.00019178,2]
[363772348,1748867441158,-420.0,0.00019178,2]
[363772350,1748867441168,-431.77016716,0.00019178,2]
[363772352,1748867441177,-420.0,0.00019178,2]
[363772354,1748867441186,-420.0,0.00019178,2]
[363772356,1748867441196,-420.0,0.00019178,2]
[363772358,1748867441206,-420.0,0.00019178,2]
[363772360,1748867441215,-420.0,0.00019178,2]
[363772362,1748867441225,-420.0,0.00019178,2]
[363772363,1748867441235,-420.0,0.00019178,2]
[363772365,1748867441244,-420.0,0.00019178,2]
[363772368,1748867441254,-430.8410127,0.00019178,2]
[363772370,1748867441264,-420.0,0.00019178,2]
[363772372,1748867441274,-420.0,0.00019178,2]
[363772374,1748867441284,-420.0,0.00019178,2]
[363772375,1748867441294,-427.24143209,0.00019178,2]
[363772377,1748867441305,-420.0,0.00019178,2]
[363772379,1748867441315,-427.46850895,0.00019178,2]
[363772381,1748867441326,-151.1279472,0.00019178,2]
[363772383,1748867441341,-361.56,0.00019178,2]
[363772385,1748867441350,-420.0,0.00019178,2]
[363772387,1748867441360,-420.0,0.00019178,2]
[363772389,1748867441370,-420.0,0.00019178,2]
[363772391,1748867441380,-420.0,0.00019178,2]
[363772393,1748867441391,-420.0,0.00019178,2]
[363772396,1748867441401,-420.0,0.00019178,2]
[363772398,1748867441412,-420.0,0.00019178,2]
[363772400,1748867441422,-420.0,0.00019178,2]
[363772402,1748867441442,-430.07307001,0.00019178,2]
[363772403,1748867441461,-420.0,0.00019178,2]
[363772406,1748867441471,-420.0,0.00019178,2]
[363772408,1748867441481,-424.93324991,0.00019178,2]
[363772410,1748867441490,-420.0,0.00019178,2]
[363772411,1748867441500,-440.84122023,0.00019178,2]
[363772413,1748867441510,-420.0,0.00019178,2]
[363772415,1748867441520,-494.74,0.00019178,2]
[363772417,1748867441530,-420.0,0.00019178,2]
[363772420,1748867441540,-420.0,0.00019178,2]
[363772421,1748867441550,-420.0,0.00019178,2]
[363772423,1748867441560,-420.0,0.00019178,2]
[363772425,1748867441570,-420.0,0.00019178,2]
[363772427,1748867441584,-160.58053594,0.00019178,2]
[363772429,1748867441597,-420.58346994,0.00019178,2]
[363772431,1748867441607,-420.0,0.00019178,2]
[363772433,1748867441617,-420.0,0.00019178,2]
[363772435,1748867441627,-422.38415224,0.00019178,2]
[363772437,1748867441637,-420.0,0.00019178,2]
[363772439,1748867441647,-420.0,0.00019178,2]
[363772441,1748867441658,-420.0,0.00019178,2]
[363772443,1748867441667,-420.0,0.00019178,2]
[363772445,1748867441678,-420.0,0.00019178,2]
[363772447,1748867441688,-420.0,0.00019178,2]
[363772450,1748867441698,-420.0,0.00019178,2]
[363772451,1748867441710,-420.0,0.00019178,2]
[363772453,1748867441719,-422.8618455,0.00019178,2]
[363772455,1748867441729,-420.0,0.00019178,2]
[363772457,1748867441739,-436.06563341,0.00019178,2]
[363772459,1748867441748,-420.0,0.00019178,2]
[363772460,1748867441758,-420.0,0.00019178,2]
[363772462,1748867441768,-420.0,0.00019178,2]
[363772464,1748867441779,-420.0,0.00019178,2]
[363772466,1748867441789,-420.0,0.00019178,2]
[363772468,1748867441798,-505.35384641,0.00019178,2]
[363772470,1748867441807,-420.0,0.00019178,2]
[363772472,1748867441817,-420.0,0.00019178,2]
[363772473,1748867441826,-420.0,0.00019178,2]
[363772475,1748867441844,-309.23496101,0.00019178,2]
[363772477,1748867441853,-420.0,0.00019178,2]
[363772479,1748867441862,-424.87477286,0.00019178,2]
[363772481,1748867441872,-420.0,0.00019178,2]
[363772483,1748867441882,-420.0,0.00019178,2]
[363772485,1748867441891,-420.0,0.00019178,2]
[363772487,1748867441900,-420.0,0.00019178,2]
[363772489,1748867441909,-429.73834295,0.00019178,2]
[363772491,1748867441919,-420.0,0.00019178,2]
[363772493,1748867441929,-420.0,0.00019178,2]
[363772495,1748867441938,-420.0,0.00019178,2]
[363772497,1748867441947,-426.07986432,0.00019178,2]
[363772499,1748867441957,-420.0,0.00019178,2]
[363772501,1748867441967,-420.0,0.00019178,2]
[363772503,1748867441976,-420.0,0.00019178,2]
[363772505,1748867441986,-420.0,0.00019178,2]
[363772507,1748867441995,-420.0,0.00019178,2]
[363772508,1748867442005,-426.43142112,0.00019178,2]
[363772510,1748867442014,-420.0,0.00019178,2]
[363772512,1748867442023,-247.26894328,0.00019178,2]
[363772514,1748867442032,-420.0,0.00019178,2]
[363772516,1748867442042,-421.40104956,0.00019178,2]
[363772518,1748867442051,-420.0,0.00019178,2]
[363772520,1748867442061,-432.77724838,0.00019178,2]
[363772522,1748867442070,-541.44168066,0.00019178,2]
[363772524,1748867442083,-429.15962198,0.00019178,2]
[363772526,1748867442093,-428.76478457,0.00019178,2]
[363772528,1748867442103,-420.0,0.00019178,2]
[363772530,1748867442113,-428.04948341,0.00019178,2]
[363772532,1748867442123,-420.0,0.00019178,2]
[363772534,1748867442133,-337.2158993,0.00019178,2]
[363772536,1748867442143,-420.0,0.00019178,2]
[363772538,1748867442153,-420.0,0.00019178,2]
[363772540,1748867442163,-420.0,0.00019178,2]
[363772542,1748867442173,-421.41594774,0.00019178,2]
[363772544,1748867442182,-426.55647396,0.00019178,2]
[363772546,1748867442191,-420.0,0.00019178,2]
[363772547,1748867442200,-422.40828688,0.00019178,2]
[363772549,1748867442210,-425.7694426,0.00019178,2]
[363772551,1748867442219,-420.0,0.00019178,2]
[363772553,1748867442229,-420.0,0.00019178,2]
[363772555,1748867442238,-420.0,0.00019178,2]
[363772557,1748867442247,-420.0,0.00019178,2]
[363772559,1748867442257,-420.0,0.00019178,2]
[363772561,1748867442266,-420.0,0.00019178,2]
[363772563,1748867442276,-420.0,0.00019178,2]
[363772565,1748867442285,-425.32035241,0.00019178,2]
[363772567,1748867442295,-420.0,0.00019178,2]
[363772569,1748867442304,-420.0,0.00019178,2]
[363772571,1748867442314,-420.0,0.00019178,2]
[363772573,1748867442323,-420.0,0.00019178,2]
[363772575,1748867442337,-420.0,0.00019178,2]
[363772577,1748867442347,-420.0,0.00019178,2]
[363772579,1748867442356,-446.06893126,0.00019178,2]
[363772581,1748867442365,-423.30043816,0.00019178,2]
[363772583,1748867442374,-420.0,0.00019178,2]
[363772585,1748867442383,-420.0,0.00019178,2]
[363772586,1748867442393,-420.0,0.00019178,2]
[363772588,1748867442402,-420.0,0.00019178,2]
[363772590,1748867442413,-420.0,0.00019178,2]
[363772592,1748867442423,-426.60185469,0.00019178,2]
[363772594,1748867442435,-422.19223486,0.00019178,2]
[363772596,1748867442443,-420.0,0.00019178,2]
[363772598,1748867442452,-234.94736842,0.00019178,2]
[363772600,1748867442460,-420.0,0.00019178,2]
[363772602,1748867442468,-420.0,0.00019178,2]
[363772604,1748867442477,-420.0,0.00019178,2]
[363772606,1748867442486,-420.0,0.00019178,2]
[363772608,1748867442496,-423.09131802,0.00019178,2]
[363772610,1748867442504,-429.61024418,0.00019178,2]
[363772612,1748867442516,-420.0,0.00019178,2]
[363772614,1748867442525,-420.0,0.00019178,2]
[363772616,1748867442534,-429.3092907,0.00019178,2]
[363772618,1748867442544,-426.67374396,0.00019178,2]
[363772620,1748867442553,-426.85443103,0.00019178,2]
[363772637,1748867442562,-420.0,0.00019178,2]
[363772640,1748867442733,-462.42,0.00019178,2]
[363772642,1748867442743,-958.67,0.00019178,2]
[363772644,1748867442752,-425.39685079,0.00019178,2]
[363772646,1748867442762,-420.0,0.00019178,2]
[363772648,1748867442771,-504.67837571,0.00019178,2]
[363772650,1748867442781,-421.58656337,0.00019178,2]
[363772652,1748867442790,-420.0,0.00019178,2]
[363772654,1748867442799,-420.0,0.00019178,2]
[363772656,1748867442809,-420.0,0.00019178,2]
[363772658,1748867442819,-420.0,0.00019178,2]
[363772660,1748867442828,-2750.23,0.00019178,2]
[363772661,1748867442839,-424.4070662,0.00019178,2]
[363772662,1748867442848,-420.0,0.00019178,2]
[363772663,1748867442858,-420.0,0.00019178,2]
[363772664,1748867442868,-420.0,0.00019178,2]
[363772665,1748867442878,-1165.66,0.00019178,2]
[363772666,1748867442888,-420.0,0.00019178,2]
[363772667,1748867442898,-420.0,0.00019178,2]
[363772668,1748867442908,-420.0,0.00019178,2]
[363772669,1748867442918,-420.0,0.00019178,2]
[363772670,1748867442928,-470.09,0.00019178,2]
[363772671,1748867442938,-427.52690967,0.00019178,2]
[363772672,1748867442948,-420.0,0.00019178,2]
[363772673,1748867442958,-435.81180602,0.00019178,2]
[363772674,1748867442968,-420.0,0.00019178,2]
[363772676,1748867442978,-1000.0,0.00019178,2]
[363772677,1748867442987,-420.0,0.00019178,2]
[363772679,1748867442996,-420.0,0.00019178,2]
[363772681,1748867443005,-420.0,0.00019178,2]
[363772683,1748867443015,-420.0,0.00019178,2]
[363772685,1748867443024,-421.38554359,0.00019178,2]
[363772687,1748867443034,-420.0,0.00019178,2]
[363772689,1748867443044,-429.06578174,0.00019178,2]
[363772691,1748867443055,-420.0,0.00019178,2]
[363772693,1748867443066,-420.0,0.00019178,2]
[363772695,1748867443077,-420.0,0.00019178,2]
[363772697,1748867443089,-427.54272932,0.00019178,2]
[363772699,1748867443099,-420.0,0.00019178,2]
[363772702,1748867443108,-420.0,0.00019178,2]
[363772705,1748867443119,-426.60793813,0.00019178,2]
[363772707,1748867443129,-420.0,0.00019178,2]
[363772709,1748867443139,-249.92887266,0.00019178,2]
[363772711,1748867443149,-334.33379116,0.00019178,2]
[363772713,1748867443159,-420.0,0.00019178,2]
[363772715,1748867443169,-425.50736585,0.00019178,2]
[363772718,1748867443180,-446.21097118,0.00019178,2]
[363772721,1748867443189,-420.0,0.00019178,2]
[363772724,1748867443199,-420.0,0.00019178,2]
[363772726,1748867443209,-420.0,0.00019178,2]
[363772728,1748867443218,-420.0,0.00019178,2]
[363772730,1748867443228,-420.0,0.00019178,2]
[363772732,1748867443236,-420.0,0.00019178,2]
[363772734,1748867443246,-426.04024474,0.00019178,2]
[363772736,1748867443256,-420.0,0.00019178,2]
[363772738,1748867443265,-423.98097485,0.00019178,2]
[363772740,1748867443275,-14935.26,0.00019178,2]
[363772742,1748867443285,-420.0,0.00019178,2]
[363772743,1748867443296,-431.07960156,0.00019178,2]
[363772746,1748867443305,-423.36227386,0.00019178,2]
[363772749,1748867443315,-420.0,0.00019178,2]
[363772753,1748867443326,-420.0,0.00019178,2]
[363772755,1748867443338,-420.0,0.00019178,2]
[363772759,1748867443348,-420.0,0.00019178,2]
[363772761,1748867443359,-420.0,0.00019178,2]
[363772764,1748867443368,-420.0,0.00019178,2]
[363772766,1748867443378,-420.0,0.00019178,2]
[363772769,1748867443388,-426.74522335,0.00019178,2]
[363772773,1748867443398,-420.0,0.00019178,2]
[363772775,1748867443407,-1157.04,0.00019178,2]
[363772777,1748867443416,-420.0,0.00019178,2]
[363772779,1748867443427,-420.0,0.00019178,2]
[363772781,1748867443441,-427.74454987,0.00019178,2]
[363772784,1748867443450,-563.6,0.00019178,2]
[363772786,1748867443461,-420.0,0.00019178,2]
[363772787,1748867443471,-420.0,0.00019178,2]
[363772789,1748867443481,-420.0,0.00019178,2]
[363772791,1748867443491,-443.10238964,0.00019178,2]
[363772793,1748867443501,-420.0,0.00019178,2]
[363772795,1748867443511,-420.0,0.00019178,2]
[363772797,1748867443522,-420.0,0.00019178,2]
[363772799,1748867443532,-420.0,0.00019178,2]
[363772802,1748867443543,-420.0,0.00019178,2]
[363772804,1748867443553,-420.0,0.00019178,2]
[363772805,1748867443562,-300.0,0.00019178,2]
[363772807,1748867443572,-426.36680445,0.00019178,2]
[363772809,1748867443582,-420.0,0.00019178,2]
[363772812,1748867443592,-411.31,0.00019178,2]
[363772813,1748867443602,-420.0,0.00019178,2]
[363772815,1748867443611,-420.0,0.00019178,2]
[363772817,1748867443621,-420.0,0.00019178,2]
[363772819,1748867443631,-493.43,0.00019178,2]
[363772821,1748867443641,-681.0,0.00019178,2]
[363772823,1748867443651,-420.0,0.00019178,2]
[363772826,1748867443661,-420.0,0.00019178,2]
[363772827,1748867443671,-420.0,0.00019178,2]
[363772829,1748867443680,-422.34477812,0.00019178,2]
[363772831,1748867443689,-420.0,0.00019178,2]
[363772833,1748867443699,-420.0,0.00019178,2]
[363772836,1748867443712,-1130.25,0.00019178,2]
[363772838,1748867443721,-685.03,0.00019178,2]
[363772839,1748867443731,-420.0,0.00019178,2]
[363772841,1748867443741,-420.0,0.00019178,2]
[363772843,1748867443750,-420.0,0.00019178,2]
[363772845,1748867443760,-420.0,0.00019178,2]
[363772847,1748867443769,-420.0,0.00019178,2]
[363772849,1748867443779,-420.0,0.00019178,2]
[363772851,1748867443788,-420.0,0.00019178,2]
[363772853,1748867443798,-513.3,0.00019178,2]
[363772855,1748867443807,-521.31,0.00019178,2]
[363772857,1748867443817,-420.0,0.00019178,2]
[363772859,1748867443826,-420.0,0.00019178,2]
[363772861,1748867443838,-420.0,0.00019178,2]
[363772863,1748867443848,-420.0,0.00019178,2]
[363772866,1748867443859,-420.0,0.00019178,2]
[363772868,1748867443868,-420.0,0.00019178,2]
[363772870,1748867443878,-1489.08,0.00019178,2]
[363772871,1748867443888,-420.0,0.00019178,2]
[363772873,1748867443897,-423.33022383,0.00019178,2]
[363772874,1748867443908,-420.0,0.00019178,2]
[363772876,1748867443917,-1042.11,0.00019178,2]
[363772878,1748867443927,-420.0,0.00019178,2]
[363772880,1748867443936,-420.0,0.00019178,2]
[363772882,1748867443945,-420.0,0.00019178,2]
[363772884,1748867443954,-1690.99,0.00019178,2]
[363772886,1748867443964,-426.04895432,0.00019178,2]
[363772887,1748867443974,-420.0,0.00019178,2]
[363772889,1748867443984,-420.0,0.00019178,2]
[363772891,1748867443994,-420.0,0.00019178,2]
[363772893,1748867444004,-420.0,0.00019178,2]
[363772895,1748867444014,-420.0,0.00019178,2]
[363772897,1748867444023,-423.72439513,0.00019178,2]
[363772899,1748867444033,-420.0,0.00019178,2]
[363772901,1748867444043,-420.0,0.00019178,2]
[363772903,1748867444052,-420.0,0.00019178,2]
[363772905,1748867444062,-420.0,0.00019178,2]
[363772907,1748867444073,-420.0,0.00019178,2]
[363772909,1748867444083,-550.3,0.00019178,2]
[363772911,1748867444093,-420.0,0.00019178,2]
[363772913,1748867444103,-905.78,0.00019178,2]
[363772915,1748867444112,-420.0,0.00019178,2]
[363772916,1748867444122,-420.0,0.00019178,2]
[363772918,1748867444132,-420.0,0.00019178,2]
[363772920,1748867444142,-420.0,0.00019178,2]
[363772922,1748867444152,-420.0,0.00019178,2]
[363772924,1748867444161,-420.0,0.00019178,2]
[363772926,1748867444171,-430.57919235,0.00019178,2]
[363772928,1748867444181,-4202.04,0.00019178,2]
[363772930,1748867444191,-190.01301444,0.00019178,2]
[363772932,1748867444200,-726.96,0.00019178,2]
[363772934,1748867444210,-420.0,0.00019178,2]
[363772936,1748867444219,-420.0,0.00019178,2]
[363772938,1748867444228,-420.0,0.00019178,2]
[363772940,1748867444238,-420.0,0.00019178,2]
[363772942,1748867444248,-420.0,0.00019178,2]
[363772944,1748867444258,-420.0,0.00019178,2]
[363772946,1748867444267,-800.6,0.00019178,2]
[363772948,1748867444277,-420.0,0.00019178,2]
[363772950,1748867444286,-420.0,0.00019178,2]
[363772952,1748867444296,-439.10612611,0.00019178,2]
[363772954,1748867444305,-420.0,0.00019178,2]
[363772956,1748867444315,-456.11289236,0.00019178,2]
[363772957,1748867444324,-420.0,0.00019178,2]
[363772959,1748867444335,-978.64,0.00019178,2]
[363772961,1748867444345,-420.0,0.00019178,2]
[363772963,1748867444354,-445.75457991,0.00019178,2]
[363772965,1748867444363,-420.0,0.00019178,2]
[363772967,1748867444373,-420.0,0.00019178,2]
[363772969,1748867444384,-420.0,0.00019178,2]
[363772971,1748867444394,-1690.87,0.00019178,2]
[363772973,1748867444403,-420.0,0.00019178,2]
[363772975,1748867444412,-420.0,0.00019178,2]
[363772977,1748867444421,-219.5496536,0.00019178,2]
[363772979,1748867444433,-420.0,0.00019178,2]
[363772981,1748867444444,-420.0,0.00019178,2]
[363772983,1748867444453,-420.0,0.00019178,2]
[363772985,1748867444462,-228.03339583,0.00019178,2]
[363772987,1748867444472,-420.0,0.00019178,2]
[363772989,1748867444483,-420.0,0.00019178,2]
[363772991,1748867444492,-420.0,0.00019178,2]
[363772993,1748867444502,-420.0,0.00019178,2]
[363772994,1748867444512,-420.0,0.00019178,2]
[363772996,1748867444522,-420.0,0.00019178,2]
[363772998,1748867444532,-420.0,0.00019178,2]
[363773000,1748867444542,-4165.15,0.00019178,2]
[363773002,1748867444551,-420.0,0.00019178,2]
[363773004,1748867444560,-421.03107665,0.00019178,2]
[363773006,1748867444574,-264.27630344,0.00019178,2]
[363773008,1748867444585,-420.0,0.00019178,2]
[363773010,1748867444594,-468.04,0.00019178,2]
[363773012,1748867444604,-500.0,0.00019178,2]
[363773014,1748867444614,-420.0,0.00019178,2]
[363773016,1748867444623,-420.0,0.00019178,2]
[363773018,1748867444633,-420.0,0.00019178,2]
[363773020,1748867444642,-420.0,0.00019178,2]
[363773022,1748867444652,-420.0,0.00019178,2]
[363773024,1748867444661,-420.0,0.00019178,2]
[363773026,1748867444671,-420.0,0.00019178,2]
[363773028,1748867444680,-420.0,0.00019178,2]
[363773030,1748867444690,-425.3187301,0.00019178,2]
[363773032,1748867444700,-542.46,0.00019178,2]
[363773034,1748867444709,-420.0,0.00019178,2]
[363773036,1748867444718,-500.0,0.00019178,2]
[363773038,1748867444728,-420.0,0.00019178,2]
[363773040,1748867444738,-420.0,0.00019178,2]
[363773042,1748867444748,-196.55780159,0.00019178,2]
[363773044,1748867444758,-420.0,0.00019178,2]
[363773046,1748867444767,-420.0,0.00019178,2]
[363773048,1748867444777,-420.0,0.00019178,2]
[363773050,1748867444787,-420.0,0.00019178,2]
[363773052,1748867444796,-420.0,0.00019178,2]
[363773054,1748867444806,-420.0,0.00019178,2]
[363773056,1748867444816,-669.01,0.00019178,2]
[363773058,1748867444825,-420.0,0.00019178,2]
[363773060,1748867444834,-420.0,0.00019178,2]
[363773062,1748867444844,-420.0,0.00019178,2]
[363773064,1748867444854,-420.0,0.00019178,2]
[363773066,1748867444864,-463.5139518,0.00019178,2]
[363773068,1748867444873,-420.0,0.00019178,2]
[363773070,1748867444883,-420.0,0.00019178,2]
[363773072,1748867444892,-420.0,0.00019178,2]
[363773074,1748867444901,-667.42,0.00019178,2]
[363773076,1748867444911,-420.0,0.00019178,2]
[363773078,1748867444921,-420.0,0.00019178,2]
[363773080,1748867444930,-420.0,0.00019178,2]
[363773082,1748867444939,-420.0,0.00019178,2]
[363773084,1748867444948,-1352.08,0.00019178,2]
[363773085,1748867444957,-420.0,0.00019178,2]
[363773087,1748867444967,-420.0,0.00019178,2]
[363773089,1748867444977,-842.73,0.00019178,2]
[363773091,1748867444987,-420.0,0.00019178,2]
[363773093,1748867444996,-246.99418094,0.00019178,2]
[363773095,1748867445006,-1858.25,0.00019178,2]
[363773097,1748867445016,-470.34,0.00019178,2]
[363773099,1748867445025,-420.0,0.00019178,2]
[363773101,1748867445035,-420.0,0.00019178,2]
[363773103,1748867445046,-554.07,0.00019178,2]
[363773105,1748867445056,-420.0,0.00019178,2]
[363773107,1748867445065,-420.0,0.00019178,2]
[363773108,1748867445075,-420.0,0.00019178,2]
[363773111,1748867445086,-420.0,0.00019178,2]
[363773112,1748867445096,-420.0,0.00019178,2]
[363773115,1748867445106,-420.0,0.00019178,2]
[363773116,1748867445116,-420.0,0.00019178,2]
[363773118,1748867445126,-424.50795911,0.00019178,2]
[363773120,1748867445136,-820.8,0.00019178,2]
[363773122,1748867445146,-420.0,0.00019178,2]
[363773125,1748867445155,-550.36,0.00019178,2]
[363773126,1748867445165,-420.0,0.00019178,2]
[363773128,1748867445175,-431.49852826,0.00019178,2]
[363773130,1748867445184,-420.0,0.00019178,2]
[363773132,1748867445193,-2393.79,0.00019178,2]
[363773134,1748867445202,-420.0,0.00019178,2]
[363773136,1748867445212,-420.0,0.00019178,2]
[363773138,1748867445221,-420.0,0.00019178,2]
[363773140,1748867445231,-420.0,0.00019178,2]
[363773142,1748867445240,-540.20194575,0.00019178,2]
[363773144,1748867445250,-864.26,0.00019178,2]
[363773146,1748867445259,-420.0,0.00019178,2]
[363773148,1748867445269,-3160.13,0.00019178,2]
[363773150,1748867445279,-420.0,0.00019178,2]
[363773152,1748867445288,-304.55418315,0.00019178,2]
[363773154,1748867445297,-420.0,0.00019178,2]
[363773155,1748867445306,-420.0,0.00019178,2]
[363773156,1748867445316,-1767.75,0.00019178,2]
[363773157,1748867445325,-420.0,0.00019178,2]
[363773158,1748867445336,-420.0,0.00019178,2]
[363773159,1748867445345,-420.0,0.00019178,2]
[363773160,1748867445354,-420.0,0.00019178,2]
[363773161,1748867445363,-420.0,0.00019178,2]
[363773162,1748867445373,-2585.55,0.00019178,2]
[363773163,1748867445383,-420.0,0.00019178,2]
[363773164,1748867445393,-420.0,0.00019178,2]
[363773165,1748867445402,-1243.7,0.00019178,2]
[363773166,1748867445412,-420.0,0.00019178,2]
[363773167,1748867445421,-420.0,0.00019178,2]
[363773168,1748867445432,-420.0,0.00019178,2]
[363773169,1748867445443,-428.4475899,0.00019178,2]
[363773171,1748867445452,-420.0,0.00019178,2]
[363773173,1748867445461,-420.0,0.00019178,2]
[363773175,1748867445471,-2534.59,0.00019178,2]
[363773177,1748867445482,-420.0,0.00019178,2]
[363773179,1748867445491,-420.0,0.00019178,2]
[363773181,1748867445500,-420.0,0.00019178,2]
[363773182,1748867445511,-420.0,0.00019178,2]
[363773184,1748867445521,-420.0,0.00019178,2]
[363773186,1748867445530,-420.0,0.00019178,2]
[363773188,1748867445539,-420.0,0.00019178,2]
[363773190,1748867445549,-880.65,0.00019178,2]
[363773192,1748867445558,-420.0,0.00019178,2]
[363773194,1748867445568,-420.0,0.00019178,2]
[363773196,1748867445578,-420.0,0.00019178,2]
[363773198,1748867445587,-420.0,0.00019178,2]
[363773200,1748867445596,-420.0,0.00019178,2]